Cogmind - Beta 13 @@@ ROGUE MODE // 2024.04.03 @ 21:36:35 Player: Analote Result: Destroyed by 21-J6M(B) with Heavy Battle Rifle Performance ------------- Evolutions (6) 3000 Regions Visited (10) 2000 Robots Destroyed (65) 325 Value Destroyed (2325) 2325 Prototype IDs (14) 280 Alien Tech Used (0) 0 Bonus (829) 829 TOTAL SCORE: 8759 Bonus ------- Follower Combat Kills 20 Met Warlord at Base 500 MAIN.C Attacked Warlord 500 Warlord Defense Kills 916 Friendly Fire -1107 Cogmind --------- Core Integrity 0/1150 Matter 265/300 Energy 99/100 System Corruption 0% Temperature Cool (90) Movement Core (50) Location -4/Warlord Parts ------- > --- POWER (3) -------- (None) > --- PROPULSION (4) --- (None) > --- UTILITY (8) ------ (None) > --- WEAPON (4) ------- (None) > --- INVENTORY (5) ---- Backup Power III Peak State ------------ > --- POWER ------------ Micro Fission Core Micro Fission Core Light Antimatter Reactor > --- PROPULSION ------- Antigrav System Antigrav System Antigrav System Improved Linear Gravjet > --- UTILITY ---------- Advanced Heat Sink Advanced Heat Sink Improved Cooling System Advanced Visual Processing Unit Advanced Target Analyzer Advanced Target Analyzer EM Disruption Field Improved Dynamic Insulation System > --- WEAPON ----------- Improved Arc Projector Heavy Laser Phase Gun Makeshift Shrapnel Gun > --- INVENTORY -------- (None) [Rating: 107] Favorites ----------- Power Light Nuclear Core Engine Ion Engine Power Core Light Nuclear Core Reactor Antimatter Reactor Propulsion Light Treads Treads Light Treads Leg Myomer Leg Hover Unit Antigrav System Utility Improved Heat Sink Device Improved Heat Sink Storage Small Storage Unit Processor Rainbow Chip Hackware Advanced Hacking Suite Protection Makeshift Light Armor Plating Weapon Battle Cannon Energy Gun EM Pulse Gun Energy Cannon Advanced Plasma Cannon Ballistic Gun Subdweller Machine Gun Ballistic Cannon Battle Cannon Launcher Subdweller Shrapnel Launcher Slashing Weapon Ripper Piercing Weapon Makeshift Spear Build | -11 -10 -10 -8 -7 -6 -5 -4 -4 -4 -4 ------- Run | Yrd Mat Sub Mat Fac Fac Fac Fac Upp Upp War Slots Evolved 12 | . . . 4 2 2 2 2 . . . Power 2 | . . . . . . 1 1 . . . Propulsion 2 | . . . 2 . . . . . . . Utility 6 | . . . 2 1 2 . 1 . . . Weapon 2 | . . . . 1 . 1 . . . . Parts Attached 108 | 6 12 12 3 5 3 9 29 8 10 11 Power 20 | 1 3 3 1 . 1 2 6 1 . 2 Engine 5 | 1 2 1 . . . 1 . . . . Core 12 | . 1 2 1 . 1 1 4 . . 2 Reactor 3 | . . . . . . . 2 1 . . Propulsion 24 | 2 3 1 . . 1 2 10 . 3 2 Treads 10 | 2 3 1 . . 1 1 . . . 2 Leg 7 | . . . . . . . 4 . 3 . Wheel . | . . . . . . . . . . . Hover 7 | . . . . . . 1 6 . . . Flight . | . . . . . . . . . . . Utility 29 | 1 2 4 1 3 1 3 7 4 2 1 Device 16 | . 1 2 . 1 . 3 4 3 1 1 Storage 2 | 1 . . . . 1 . . . . . Processor 7 | . 1 . 1 1 . . 3 . 1 . Hackware 1 | . . . . . . . . 1 . . Protection 3 | . . 2 . 1 . . . . . . Artifact . | . . . . . . . . . . . Weapon 35 | 2 4 4 1 2 . 2 6 3 5 6 Energy Gun 18 | 1 4 . . 1 . . 4 2 2 4 Energy Cannon 3 | . . . . . . . 2 . 1 . Ballistic Gun 6 | 1 . 2 . . . 2 . 1 . . Ballistic Cannon 2 | . . 1 . 1 . . . . . . Launcher 2 | . . 1 1 . . . . . . . Special Weapon . | . . . . . . . . . . . Impact Weapon . | . . . . . . . . . . . Slashing Weapon 3 | . . . . . . . . . 1 2 Piercing Weapon 1 | . . . . . . . . . 1 . Special Melee Weapon . | . . . . . . . . . . . Unidentified Prototypes 2 | . . . . 1 . . . . . 1 Parts Lost 36 | . 1 4 . . . 6 6 8 5 6 Power 8 | . 1 1 . . . 2 3 . . 1 Propulsion 9 | . . . . . . . 2 4 1 2 Utility 8 | . . 1 . . . 3 . 1 1 2 Weapon 11 | . . 2 . . . 1 1 3 3 1 Highest Loss Streak 7 | . 1 4 . . . 3 6 7 3 6 To Critical Strikes . | . . . . . . . . . . . Average Slot Usage (%) 69 | . 97 95 65 75 73 75 48 36 19 41 Engine 4 | . 13 3 . . . 2 . . . 7 Core 5 | . . 9 12 11 10 7 6 2 . . Treads 13 | . 27 28 13 11 11 12 . . . . Leg 1 | . . . . . . . . . 7 8 Hover 1 | . . . . . . . 8 4 . . Device 8 | . 4 12 6 5 10 16 9 11 1 2 Storage 3 | . 14 . . . 1 3 . . . . Processor 5 | . 8 . 6 10 10 4 8 3 2 4 Protection 5 | . . 12 6 10 10 8 . . . 3 Energy Gun 6 | . 17 2 . . . . 11 5 1 7 Ballistic Gun 6 | . 10 20 6 5 1 7 . . . . Ballistic Cannon 3 | . . 4 6 9 10 8 . . . . Launcher 1 | . . . 6 5 5 1 . . . . Naked Turns 401 | . . . . . . 134 21 179 67 . Heaviest Build 70 | 13 14 27 30 44 47 70 43 47 14 57 Greatest Support 70 | 40 40 40 40 40 62 62 43 43 70 50 Greatest Overweight (x) 9 | . . . . 1 1 2 3 9 4 7 Average Overweight (x) . | . . . . . . . . 1 . . Largest Inventory Capacity 8 | 8 8 8 5 5 5 5 5 5 5 5 Average Capacity 5 | 7 8 5 5 5 5 5 5 5 5 5 Most Carried 7 | 2 6 7 4 5 5 5 5 3 3 5 Average Carried 2 | . 3 4 3 3 4 3 . . . 1 Final Capacity 8 | 8 8 5 5 5 5 5 5 5 5 5 Final Carried 5 | 1 5 5 4 4 5 3 . 1 . 1 Class Distribution -------------------- 55% | Mutant 23% | Scavenger-Tank 7% | Tank 5% | Gladiator 4% | Scavenger-Gunner Dominant Class ---------------- Mutant | -10/Materials Mutant | -10/Subcaves Scavenger-Tank | -8/Materials Scavenger-Tank | -7/Factory Tank | -6/Factory Tank | -5/Factory Scavenger-Gunner | -4/Factory Mutant | -4/Upper Caves Mutant | -4/Upper Caves Mutant | -4/Warlord Resources | -11 -10 -10 -8 -7 -6 -5 -4 -4 -4 -4 ----------- Run | Yrd Mat Sub Mat Fac Fac Fac Fac Upp Upp War Matter Collected 2229 | 237 155 99 76 32 269 700 304 176 78 103 Remotely . | . . . . . . . . . . . Salvage Created 2498 | . 386 85 36 7 51 748 329 192 140 524 Parts 124 | . 28 6 5 1 5 31 15 14 8 11 Haulers Intercepted . | . . . . . . . . . . . Recyclers Shooed 4 | . . . . . . 4 . . . . Parts Field Recycled . | . . . . . . . . . . . Retrieved Matter . | . . . . . . . . . . . Parts Self-Destructed 21 | . . . . . . . . 15 6 . Prevented . | . . . . . . . . . . . Kills | -11 -10 -10 -8 -7 -6 -5 -4 -4 -4 -4 ------- Run | Yrd Mat Sub Mat Fac Fac Fac Fac Upp Upp War Combat Hostiles Destroyed 47 | . 10 3 . . 3 15 2 6 2 6 Melee 2 | . . . . . . 1 . . 1 . Guns 27 | . 9 3 . . . 6 2 6 . 1 Cannons 10 | . . . . . 1 8 . . 1 . AOE 7 | . 1 . . . 2 . . . . 4 Classes Destroyed 13 | . 4 1 . 1 1 4 1 . . 1 Worker 4 | . . . . 1 . 1 2 . . . Builder 4 | . . . . . 1 2 1 . . . Recycler 3 | . 1 . . . . 1 1 . . . Watcher 4 | . 1 . 2 . . 1 . . . . Swarmer 14 | . 3 . . . . 6 . 5 . . Grunt 20 | . 7 . . . 3 5 . 1 . 4 Brawler 2 | . . . . . . 1 . . . 1 Duelist 1 | . . . . . . 1 . . . . Sentry 2 | . . . . . . 1 1 . . . Hunter 3 | . . . . . . 1 . . 2 . Programmer 1 | . . . . . . . 1 . . . Striker 1 | . . . . . . . . . . 1 Subdweller 3 | . . 3 . . . . . . . . Thug 3 | . . . . . . . . . . 3 Best Kill Streak 9 | . 3 2 1 1 3 9 4 5 1 5 Combat Bots Only 5 | . 3 2 . . 3 5 1 5 1 5 Max Kills in Single Turn 4 | . 1 1 1 1 2 3 2 1 1 4 Gunslinging . | . . . . . . . . . . . Exploded 3 | . 1 . . . 2 . . . . 3 Melee 1 | . . . . . . 1 . . 1 . Uniques/NPCs Destroyed . | . . . . . . . . . . . Combat | -11 -10 -10 -8 -7 -6 -5 -4 -4 -4 -4 -------- Run | Yrd Mat Sub Mat Fac Fac Fac Fac Upp Upp War Hostile Shots Fired 492 | . 64 19 . . 5 183 34 77 67 43 Missed 166 | . 11 6 . . 2 73 12 29 19 14 Damage Taken 6367 | . 589 425 . 101 57 1748 762 970 1034 681 Core 1832 | . 105 . . . 18 536 103 473 376 221 Absorbed by Shields 306 | . . . . . . 306 . . . . Regen/Repaired (Parts) 489 | . 241 . . . . 175 . . . 73 Core Remaining (%) 83 | 100 . 58 100 100 97 46 . . . . Volleys Fired 177 | . 40 32 3 . 5 43 22 19 5 8 Largest 4 | . 2 2 3 . 4 4 3 3 1 2 Hottest 212 | . 80 80 109 . 148 134 212 212 98 90 Shots Fired 417 | . 79 50 7 . 14 160 49 39 5 14 Gun 297 | . 79 43 3 . . 74 45 39 . 14 Cannon 115 | . . 7 3 . 10 86 4 . 5 . Launcher 5 | . . . 1 . 4 . . . . . Special . | . . . . . . . . . . . Kinetic 263 | . 38 39 7 . 14 160 . 5 . . Thermal 75 | . 19 . . . . . 35 15 5 1 Explosive . | . . . . . . . . . . . Electromagnetic 66 | . 22 11 . . . . 14 19 . . Entropic 13 | . . . . . . . . . . 13 Robot Hit Streak 27 | . 13 9 1 . 3 17 23 27 3 3 Robot Miss Streak 7 | . 6 7 2 . 1 6 2 7 2 4 Penetration Max 1 | . . . . . . 1 . . . 1 Secondary Targets 3 | . 1 . . . . . . 2 . . Max Gunslinging Chain 1 | . 1 . . . . . . 1 . . Shots Hit Robots 248 | . 52 22 2 . 8 92 40 21 5 6 Core Hits 135 | . 23 6 2 2 12 44 15 17 4 10 Critical Kills . | . . . . . . . . . . . Critical Parts Destroyed 3 | . . . . . . . . . . 3 Critical Strikes 17 | . . . . . 1 4 6 2 1 3 Burn 7 | . . . . . . . 5 2 . . Blast 5 | . . . . . 1 4 . . . . Corrupt 1 | . . . . . . . 1 . . . Sever 1 | . . . . . . . . . 1 . Detonate 3 | . . . . . . . . . . 3 Melee Attacks 2 | . . . . . . . . . 2 . Impact . | . . . . . . . . . . . Slashing 2 | . . . . . . . . . 2 . Piercing . | . . . . . . . . . . . Sneak Attacks . | . . . . . . . . . . . Combat Hostiles . | . . . . . . . . . . . Follow-up Attacks . | . . . . . . . . . . . Damage Inflicted 6837 | . 577 238 80 12 476 2297 957 468 209 1523 Guns 3584 | . 515 238 25 . . 1107 695 468 . 536 Cannons 1469 | . . . . . 141 1156 72 . 100 . Explosions 1555 | . 62 . 55 . 271 . 180 . . 987 Melee 109 | . . . . . . . . . 109 . Ramming 120 | . . . . 12 64 34 10 . . . Kinetic 3220 | . 249 123 80 . 412 2263 . 93 . . Thermal 2047 | . 171 . . . . . 830 254 100 692 Explosive . | . . . . . . . . . . . Electromagnetic 817 | . 157 115 . . . . 117 121 . 307 Impact . | . . . . . . . . . . . Slashing 109 | . . . . . . . . . 109 . Piercing . | . . . . . . . . . . . Entropic 524 | . . . . . . . . . . 524 Highest Corruption 11 | . 1 1 . . . 1 4 10 10 11 Average Corruption 4 | . 1 1 . . . 1 2 8 10 10 Corruption Purged . | . . . . . . . . . . . Corruption Blocked . | . . . . . . . . . . . Effects 88 | . 11 9 . . . 1 3 43 20 1 Message Errors 17 | . 3 3 . . . 1 2 3 5 . Matter Fused 22 | . 1 3 . . . . 1 12 5 . Heat Flow Errors 10 | . 2 1 . . . . . 5 1 1 Energy Discharges 12 | . 2 . . . . . . 9 1 . Parts Fused 2 | . . . . . . . . 1 1 . Data Loss (minor) 16 | . 2 2 . . . . . 7 5 . Data Loss (major) 2 | . 1 . . . . . . 1 . . Misfires 2 | . . . . . . . . 2 . . Alerts 1 | . . . . . . . . . 1 . Misdirections 3 | . . . . . . . . 2 1 . Weapon Failures 1 | . . . . . . . . 1 . . Overload Shots . | . . . . . . . . . . . Overflow Damage 72 | . . . . . . 32 37 . . 3 Projectiles 32 | . . . . . . 32 . . . . Explosions 40 | . . . . . . . 37 . . 3 Melee . | . . . . . . . . . . . Knockbacks 10 | . . . . . 1 9 . . . . Impact 1 | . . . . . 1 . . . . . Kinetic 8 | . . . . . . 8 . . . . Secondary 1 | . . . . . . 1 . . . . Self-Inflicted Damage 84 | . . . . . . 1 83 . . . Shots 1 | . . . . . . . 1 . . . Rammed 19 | . . . . 4 5 8 2 . . . Targets Rammed 22 | . . . . 5 6 9 2 . . . Kicked . | . . . . . . . . . . . Crushed 3 | . . . . 1 1 1 . . . . Highest Temperature 402 | . 191 244 30 . 135 402 386 247 199 90 Average Temperature 114 | . 47 124 16 . 80 159 185 91 57 38 Received Heat Transfer 1364 | . 243 316 . 12 27 303 21 229 120 93 Effects 10 | . . . . . . 8 2 . . . Shutdowns 6 | . . . . . . 4 2 . . . Energy Bleed 1 | . . . . . . 1 . . . . Interference 2 | . . . . . . 2 . . . . Matter Decay 1 | . . . . . . 1 . . . . Siege Activations . | . . . . . . . . . . . Robots Corrupted . | . . . . . . . . . . . Combat Hostiles . | . . . . . . . . . . . Parts Fried 1 | . . 1 . . . . . . . . Impact Corruptions . | . . . . . . . . . . . Robots Melted 1 | . . . . . . . . . . 1 Combat Hostiles 1 | . . . . . . . . . . 1 Parts Melted 4 | . . . . . . . 1 1 1 1 Heat Transferred 3185 | . 300 . . . . . 1593 555 150 587 Parts Sabotaged . | . . . . . . . . . . . Parts Stolen . | . . . . . . . . . . . Parts Stripped . | . . . . . . . . . . . Power Chain Reactions 3 | . 1 . . . . . 1 . . 1 Alert | -11 -10 -10 -8 -7 -6 -5 -4 -4 -4 -4 ------- Run | Yrd Mat Sub Mat Fac Fac Fac Fac Upp Upp War Peak Influence 326 | . 114 . 62 33 144 326 189 . . . Initial 127 | . . . . 28 7 70 127 . . . Average 74 | . 50 . 19 11 98 179 120 . . . Maximum Alert Level 1 | . . . . . . 1 . . . . Low Security (%) 92 | 100 100 . 100 100 100 61 100 . . . Level 1 7 | . . . . . . 38 . . . . Level 2 . | . . . . . . . . . . . Level 3 . | . . . . . . . . . . . Level 4 . | . . . . . . . . . . . Level 5 . | . . . . . . . . . . . High Security . | . . . . . . . . . . . Max Security . | . . . . . . . . . . . Squads Dispatched 20 | . 2 . 4 4 2 4 4 . . . Investigation 4 | . 1 . 1 1 1 . . . . . Extermination 3 | . . . . 1 . 1 1 . . . Reinforcement 6 | . 1 . 1 . 1 . 3 . . . Assault . | . . . . . . . . . . . Garrison 7 | . . . 2 2 . 3 . . . . Intercept . | . . . . . . . . . . . Searches Triggered . | . . . . . . . . . . . Construction Impeded . | . . . . . . . . . . . Haulers Reinforced 1 | . . . . . . . 1 . . . Active Scanning Responses . | . . . . . . . . . . . Cargo Convoy Interrupts 1 | . . . . . . 1 . . . . Stealth | -11 -10 -10 -8 -7 -6 -5 -4 -4 -4 -4 --------- Run | Yrd Mat Sub Mat Fac Fac Fac Fac Upp Upp War Distress Signals 5 | . 1 . 1 . 1 2 . . . . Communications Jammed . | . . . . . . . . . . . Distress Signals . | . . . . . . . . . . . Times Spotted 144 | . 13 9 2 2 8 37 16 18 7 32 Peak Tracking Total 23 | . 3 7 1 1 3 12 5 5 5 23 Tactical Retreats 12 | . . 1 . . 1 4 1 4 . 1 Traps | -11 -10 -10 -8 -7 -6 -5 -4 -4 -4 -4 ------- Run | Yrd Mat Sub Mat Fac Fac Fac Fac Upp Upp War Traps Triggered 3 | . 1 . . . . 1 . . . 1 Indirectly . | . . . . . . . . . . . Trap Hack Attempts . | . . . . . . . . . . . Triggered . | . . . . . . . . . . . Disarmed . | . . . . . . . . . . . Reprogrammed 4 | . 4 . . . . . . . . . Reused . | . . . . . . . . . . . Traps Extracted . | . . . . . . . . . . . Installed . | . . . . . . . . . . . Triggered 10 | . . . . . . . . . . 10 Machines | -11 -10 -10 -8 -7 -6 -5 -4 -4 -4 -4 ---------- Run | Yrd Mat Sub Mat Fac Fac Fac Fac Upp Upp War Machines Disabled 3 | . . 1 . . 1 1 . . . . Max in Single Turn 1 | . . 1 . . 1 1 . . . . Machines Repaired . | . . . . . . . . . . . Machines Dismantled . | . . . . . . . . . . . Machines Sabotaged . | . . . . . . . . . . . Overloaded Fab Kills . | . . . . . . . . . . . Hacking | -11 -10 -10 -8 -7 -6 -5 -4 -4 -4 -4 --------- Run | Yrd Mat Sub Mat Fac Fac Fac Fac Upp Upp War Machines Accessed 13 | . 8 1 . . . 1 . 1 1 1 Terminals 7 | . 7 . . . . . . . . . Fabricators . | . . . . . . . . . . . Repair Stations 2 | . 1 . . . . 1 . . . . Recycling Units . | . . . . . . . . . . . Scanalyzers . | . . . . . . . . . . . Garrison Access . | . . . . . . . . . . . Total Hacks 35 | . 21 9 . . . 2 . 1 1 1 Successful 31 | . 17 9 . . . 2 . 1 1 1 Failed 4 | . 4 . . . . . . . . . Catastrophic . | . . . . . . . . . . . Database Lockouts . | . . . . . . . . . . . Manual 15 | . 14 1 . . . . . . . . Terminals 17 | . 17 . . . . . . . . . Fabricators . | . . . . . . . . . . . Repair Stations 6 | . 4 . . . . 2 . . . . Recycling Units . | . . . . . . . . . . . Scanalyzers . | . . . . . . . . . . . Garrison Access . | . . . . . . . . . . . Terminal Hacks 17 | . 5 9 . . . . . 1 1 1 Record 8 | . . 8 . . . . . . . . Prototype ID Bank 1 | . 1 . . . . . . . . . Open Door 3 | . . . . . . . . 1 1 1 Alert Level 1 | . 1 . . . . . . . . . Locate Traps 2 | . 2 . . . . . . . . . Reprogram Traps 1 | . 1 . . . . . . . . . Derelict Proto ID Bank 1 | . . 1 . . . . . . . . Fabricator Hacks . | . . . . . . . . . . . Repair Station Hacks 6 | . 4 . . . . 2 . . . . Scan Component 3 | . 2 . . . . 1 . . . . Repair 3 | . 2 . . . . 1 . . . . Recycling Unit Hacks . | . . . . . . . . . . . Scanalyzer . | . . . . . . . . . . . Garrison Access Hacks . | . . . . . . . . . . . Unauthorized Hacks 8 | . 8 . . . . . . . . . Terminals 8 | . 8 . . . . . . . . . Assimilate 1 | . 1 . . . . . . . . . Botnet 7 | . 7 . . . . . . . . . Fabricators . | . . . . . . . . . . . Repair Stations . | . . . . . . . . . . . Recycling Units . | . . . . . . . . . . . Scanalyzers . | . . . . . . . . . . . Garrison Access . | . . . . . . . . . . . Data Cores Recovered . | . . . . . . . . . . . Used . | . . . . . . . . . . . Hacking Detections 6 | . 5 . . . . 1 . . . . Full Trace Events 2 | . 2 . . . . . . . . . Feedback Events 1 | . 1 . . . . . . . . . Corruption 1 | . 1 . . . . . . . . . Feedback Blocked . | . . . . . . . . . . . Robot Schematics Acquired . | . . . . . . . . . . . Robots Built . | . . . . . . . . . . . Authchips . | . . . . . . . . . . . Time . | . . . . . . . . . . . Total Robot Build Rating . | . . . . . . . . . . . Part Schematics Acquired . | . . . . . . . . . . . Parts Built . | . . . . . . . . . . . Authchips . | . . . . . . . . . . . Time . | . . . . . . . . . . . Total Part Build Rating . | . . . . . . . . . . . Parts Repaired 3 | . 2 . . . . 1 . . . . Time 68 | . 52 . . . . 16 . . . . Parts Recycled . | . . . . . . . . . . . Recycled Matter . | . . . . . . . . . . . Retrieved Matter . | . . . . . . . . . . . Retrieved Components . | . . . . . . . . . . . Parts Scanalyzed . | . . . . . . . . . . . Part Schematics Acquired . | . . . . . . . . . . . Parts Damaged . | . . . . . . . . . . . Bothacking | -11 -10 -10 -8 -7 -6 -5 -4 -4 -4 -4 ------------ Run | Yrd Mat Sub Mat Fac Fac Fac Fac Upp Upp War Used RIF Installer . | . . . . . . . . . . . Robots Hacked . | . . . . . . . . . . . Non-combat . | . . . . . . . . . . . Combat . | . . . . . . . . . . . Robot Hacks Applied . | . . . . . . . . . . . Relay Couplers Released . | . . . . . . . . . . . Fabnet Peak Effective % . | . . . . . . . . . . . Robots Rewired . | . . . . . . . . . . . Allies Hacked . | . . . . . . . . . . . Hacks Repelled . | . . . . . . . . . . . Allies | -11 -10 -10 -8 -7 -6 -5 -4 -4 -4 -4 -------- Run | Yrd Mat Sub Mat Fac Fac Fac Fac Upp Upp War Total Allies 15 | . . . . 12 . . . 3 . . Largest Group 4 | . . . . 4 . . . 3 . . Highest-Rated Group 138 | . . . . 101 . . . 138 . . Highest-Rated Ally 46 | . . . . 31 . . . 46 . . Total Orders . | . . . . . . . . . . . Ally Attacks 10 | . . . . . . . . 10 . . Total Damage 213 | . . . . . . . . 213 . . Kills 1 | . . . . . . . . 1 . . Allies Corrupted . | . . . . . . . . . . . Allies Melted . | . . . . . . . . . . . Intel | -11 -10 -10 -8 -7 -6 -5 -4 -4 -4 -4 ------- Run | Yrd Mat Sub Mat Fac Fac Fac Fac Upp Upp War Robot Analysis Total . | . . . . . . . . . . . Derelict Logs Recovered 4 | . . . . . . . . 2 2 . Drone Launches . | . . . . . . . . . . . Drone Recoveries . | . . . . . . . . . . . Exploration | -11 -10 -10 -8 -7 -6 -5 -4 -4 -4 -4 ------------- Run | Yrd Mat Sub Mat Fac Fac Fac Fac Upp Upp War Turns Passed 8362 | 69 1699 1185 159 1172 369 957 449 1191 542 570 Spaces Moved 4884 | 40 712 665 91 490 174 603 306 976 423 404 Core 1063 | 6 . . . . . 265 81 511 198 2 Treads 2487 | 34 712 665 91 490 174 316 . . . 5 Legs 618 | . . . . . . . 2 . 225 391 Wheels . | . . . . . . . . . . . Hover 716 | . . . . . . 22 223 465 . 6 Flight . | . . . . . . . . . . . Fastest Speed 32 | 50 160 160 160 160 155 50 32 43 50 50 Average Speed 143 | 143 160 160 160 228 183 121 98 115 111 128 Slowest Speed 660 | 160 160 160 160 250 250 241 200 500 250 660 Overloaded Moves . | . . . . . . . . . . . Propulsion Burnouts . | . . . . . . . . . . . Robots Hopped . | . . . . . . . . . . . Cave-ins Triggered . | . . . . . . . . . . . Exploration Rate (%) 38 | 4 92 25 16 19 7 23 11 97 62 62 Regions Visited 10 Branch Regions 4 Pre-discovered Areas . | . . . . . . . . . . . Known Exits Taken 1 | . 1 . . . . . . . . . Unknown Exits Taken 9 | 1 . 1 1 1 1 1 1 1 1 . Scrap Searched 5 | . . . . . . . . 3 2 . Spaces Dug . | . . . . . . . . . . . Terrain Destroyed 83 | . 3 . 15 . 46 2 11 . 2 4 Melee . | . . . . . . . . . . . Projectile 6 | . . . 1 . . 2 . . 2 1 AOE 77 | . 3 . 14 . 46 . 11 . . 3 Terrain Rammed . | . . . . . . . . . . . Walls Destroyed . | . . . . . . . . . . . Machines Disabled . | . . . . . . . . . . . Actions | -11 -10 -10 -8 -7 -6 -5 -4 -4 -4 -4 --------- Run | Yrd Mat Sub Mat Fac Fac Fac Fac Upp Upp War Total 5912 | 52 1198 742 98 536 210 718 415 1013 484 446 Wait 590 | . 424 12 . 33 16 47 20 2 34 2 Move 4874 | 39 711 664 90 489 173 602 305 975 422 404 Hop . | . . . . . . . . . . . Pick Up 102 | 7 11 14 2 4 4 7 26 8 9 10 Fast Attach . | . . . . . . . . . . . Attach 92 | 6 7 8 3 4 2 7 29 8 10 8 Detach 14 | . . 1 . . 1 . 5 1 1 5 Swap 16 | . 5 4 . 1 1 2 . . . 3 Drop 23 | . . 7 . . 2 1 6 . 1 6 Fire 177 | . 40 32 3 . 5 43 22 19 5 8 Melee 2 | . . . . . . . . . 2 . Ram 5 | . . . . . . 3 2 . . . Kick . | . . . . . . . . . . . Crush 17 | . . . . 5 6 6 . . . . Escape Stasis . | . . . . . . . . . . . Rewire . | . . . . . . . . . . . Trap . | . . . . . . . . . . . Miscellaneous . | . . . . . . . . . . . Route ------- -11/Scrapyard -10/Materials (discovered 5 exits: *Mat x3 / *Min / *Sub) -10/Subcaves -8/Materials (discovered 2 exits: *Fac / [*Sto]) -7/Factory -6/Factory -5/Factory -4/Factory (discovered 2 exits: [*Res] / *Upp) -4/Upper Caves -4/Upper Caves (discovered 2 exits: [*Res] / *War) -4/Warlord History --------- Turn | Location | Event 5 | -11/Scrapyard | Discovered new exit (range 15) 70 | -11/Scrapyard | Entered Materials 312 | -10/Materials | Build established: Mutant 572 | -10/Materials | Discovered new exit (range 16) 693 | -10/Materials | Discovered new exit (range 9) 734 | -10/Materials | Identified exit to Materials 1130 | -10/Materials | Repaired Lgt. Treads 1158 | -10/Materials | Repaired Lgt. Treads 1182 | -10/Materials | Discovered exit to Materials (range 10) 1293 | -10/Materials | Discovered new exit (range 16) 1352 | -10/Materials | Identified exit to Mines 1757 | -10/Materials | Discovered new exit (range 8) 1767 | -10/Materials | Identified exit to Subcaves 1769 | -10/Materials | Entered Subcaves 1845 | -10/Subcaves | Ambushed by swarm of Subdwellers 1854 | -10/Subcaves | Ambushed by Subdwellers from Twisted Machinery 1858 | -10/Subcaves | Ambushed by Subdweller buried in earth 1895 | -10/Subcaves | Lost 4 allies 1912 | -10/Subcaves | Lost 4 parts (1p1u2w) 2153 | -10/Subcaves | Discovered new exit (range 14) 2320 | -10/Subcaves | Visited 4L-MR0's lab 2564 | -10/Subcaves | A swath of the cavern ceiling suddenly collapsed 2876 | -10/Subcaves | Found Rainbow Chip 2954 | -10/Subcaves | Entered Materials 2954 | -8/Materials | Evolved 4 slots: Propulsion x2, Utility x2 2955 | -8/Materials | Attached Rainbow Chip, gained temporary slots: Power, Propulsion, Utility, Weapon 2964 | -8/Materials | Garrison activated, responded to threat 3040 | -8/Materials | Met 7R-MNS 3045 | -8/Materials | Discovered new exit (range 15) 3098 | -8/Materials | Discovered new exit (range 10) 3113 | -8/Materials | Entered Factory 3113 | -7/Factory | Evolved 2 slots: Utility x1, Weapon x1 3114 | -7/Factory | Caught up to 7R-MNS 3262 | -7/Factory | Build established: Scavenger-Tank 4088 | -7/Factory | Garrison activated, responded to threat 4243 | -7/Factory | Discovered new exit (range 15) 4285 | -7/Factory | Entered another Factory area 4285 | -6/Factory | Evolved 2 slots: Utility x2 4286 | -6/Factory | Caught up to 7R-MNS 4648 | -6/Factory | Discovered new exit (range 4) 4654 | -6/Factory | Entered another Factory area 4654 | -5/Factory | Evolved 2 slots: Power x1, Weapon x1 4655 | -5/Factory | Caught up to 7R-MNS 4758 | -5/Factory | Garrison activated, responded to threat 5011 | -5/Factory | Repaired Spk. Treads 5223 | -5/Factory | Build established: Tank 5470 | -5/Factory | Cargo convoy interrupted 5477 | -5/Factory | Released all parts (15) 5502 | -5/Factory | Lost 3 parts (1p2u) 5603 | -5/Factory | Discovered new exit (range 16) 5607 | -5/Factory | Core integrity fell below 50% 5611 | -5/Factory | Entered another Factory area 5611 | -4/Factory | Evolved 2 slots: Power x1, Utility x1 5612 | -4/Factory | Caught up to 7R-MNS 5666 | -4/Factory | Discovered new exit (range 7) 5877 | -4/Factory | Lost 6 parts (3p2n1w) 6037 | -4/Factory | 7R-MNS successfully reached the Upper Caves 6039 | -4/Factory | Discovered new exit (range 9) 6060 | -4/Factory | Entered Upper Caves 6084 | -4/Upper Caves | Learned location of 1 exit from Research 6200 | -4/Upper Caves | Discovered new exit (range 15) 6335 | -4/Upper Caves | System corruption reached 10% 6335 | -4/Upper Caves | Released all parts (11) 6365 | -4/Upper Caves | Lost 7 parts (4n1u2w) 6456 | -4/Upper Caves | Learned Research trap positions 6456 | -4/Upper Caves | A Commander dispatched an escort 6629 | -4/Upper Caves | Build established: Mutant 7193 | -4/Upper Caves | Attracted the attention of an 0b10 checkpoint 7194 | -4/Upper Caves | Released all parts (5) 7228 | -4/Upper Caves | Lost 3 allies 7232 | -4/Upper Caves | Core integrity fell below 50% 7251 | -4/Upper Caves | Entered another Upper Caves area 7251 | -4/Upper Caves | Discovered new exit (range 11) 7254 | -4/Upper Caves | Encountered a Warlord checkpoint 7310 | -4/Upper Caves | Learned 4 Research zone layouts 7541 | -4/Upper Caves | Learned Research stockpile data 7758 | -4/Upper Caves | Spotted B-86 Titan 7780 | -4/Upper Caves | Core integrity fell below 20% 7780 | -4/Upper Caves | Discovered new exit (range 11) 7793 | -4/Upper Caves | Entered Warlord 7809 | -4/Warlord | Lost 3 parts (1n1u1w) 7835 | -4/Warlord | System corruption cleaned by Quarantine Array 7900 | -4/Warlord | Met Warlord 7925 | -4/Warlord | Warlord's base attacked by MAIN.C 8173 | -4/Warlord | Found Prototype Energy Gun 8174 | -4/Warlord | Identified Vortex Rail 8177 | -4/Warlord | Found Vortex Rail 8275 | -4/Warlord | Warlord forces counterattacked 8277 | -4/Warlord | Spotted Striker 8325 | -4/Warlord | Lost 6 parts (1p2n2u1w) 8350 | -4/Warlord | Spotted Striker 8357 | -4/Warlord | Spotted Executioner 8360 | -4/Warlord | Destroyed Striker 8361 | -4/Warlord | Attacked by Warlord forces 8361 | -4/Warlord | Spotted Executioner 8362 | -4/Warlord | Spotted 21-J6M(B) 8362 | -4/Warlord | Spotted OL-VBZ(B) 8362 | -4/Warlord | Spotted ID-I6X(g) 8363 | -4/Warlord | Released all parts (11) 8363 | -4/Warlord | Destroyed by 21-J6M(B) with Heavy Battle Rifle Last Messages --------------- 08360_ AI-VDA(g) destroyed. 08360_ Destroyed Imp. Heat Sink. 08361_ ANNOUNCEMENT: Internal threat detected, destroy unregistered bots on sight. 08361_ Critical hit (Burn: +80). 08363_ Penetrated by Slug. 08363_ Released Imp. Treads. 08363_ Released Neutrino Core. 08363_ Released Backup Laser III. 08363_ Released Arm. Medium Treads. 08363_ Released Vortex Rail. 08363_ Released Point Defense Array. 08363_ Released Backup Power III. 08363_ Released Backup Plating III. 08363_ Released Rnf. Fission Core. 08363_ Released Hvy. Riot Gun. 08363_ Hvy. Riot Gun crushed and broken. 08363_ Released Backup Propulsion III. 08363_ Backup Propulsion III crushed and broken. 08363_ Executioner critical meltdown. Map ----- +----------------------------------------------------+ | ?????????????????????????????????????????????????? | | ?????????????????????????????????????????????????? | | ?????????????????????????????????????????????????? | | ?????????????????????????????????????????????????? | | ?????????????????????????????????????????????????? | | ?????????????????????????????????????????????????? | | ?????????????????????????????????????????????????? | | #####????????????????????????????????????????????? | | #????????????????????????????????????????????? | | #????????????????????????????????????????????? | | #????????????????????????????????????????????? | | #?????# #??????????????????????????????????? | | #???? #????????????????????????????#????? | | #??? #?????????????????????? ??### ???? | | +?? #?????????????????????? ?? ???? | | #?? #??????????????????????? ### ???? | | #?? ????????????????????????? ???? | | #??? ##?????????????????????????# #??? | | +???? #????#""??????????????????# ??? | | +####?????# #?????#""#??????????????????# ##? | | ##??????# #?????#""#???????????????????# #? | | #??##### #######""#######????#?????????# ## | | ##??# # ""[=! ;;###=[######?????# # | | ###?## M ; % ""!***== %![! !!=!#??????# | | # ### B ;=! ""=[|[!=[[%%[=*[!=#####?## | | Y % %%=gM[[[@=%!*M[=!%gg[%%# ### | | !%[/%[%!gM*%[%%%=![[=%M=*[% ## | | Y [%=/%!%*!*g%%[%=[%*==[!g=E== ### | | [[%;%![!%%%/*![[[=%==%=*#### ### | | # % /= !|=%!=%=%%[!=%== "#??## #?# | | # # % # % !%[![ *"=!"""""#???# #?## | | # # ; [""!==!############???# #### | | # #### #######""#####??????????????# #?# | | #?????#""#?????????????????? ### | | ^ #?????#""#????????????????? ### | | #?????#""#????????????????? ##?# | | ^ #????????????????????????? ???## | | ######+##????????????????????????? ????## | | #???? ??????????????????????????? #?????# | | #???? ??????????????????????????? ??????## | | #???? ???????????????????????????? ??????## | | ^^ #???? ??????????????????????????????????## | | """ #????X ??????????????????????????????????# | | """ #????""??????????????????????????????????# | | """ #????????????????????????????????????????# | | #????????????????????????????????????????# | | #????????????????????????????????????????## | | """ #?######?????????????????????????????????? | | """ #?# ?????????????????????????????????? | | """ #?# """#??????????????????????????????## | +----------------------------------------------------+ Best States ------------- Heat Dissipation 108 Energy Generation 41 Energy Capacity 780 Matter Stores 300 Matter Capacity 300 Sight Range 21 Robot Scan Range 15 Terrain Scan Density 210 ECM Strength 2 EM Shielding 3 Armor Coverage 800 Resistance: EM 25 Point Defense Rating 160 Evasion (%) 57 Melee Accuracy 5 Target Analysis 12 Recoil Reduction 3 Offensive Hacking 14 Item Schematics ----------------- None Robot Schematics ------------------ None Fabricated ------------ Nothing Alien Tech Used ----------------- None Achievements -------------- None Challenges ------------ None Game ------ Seed MinesnifferConstructBarrier Manual? 0 Play Time 00:56:24 Cumulative 97.9 hours Start 2024.04.03 @ 20:27:48 End 2024.04.03 @ 21:36:35 Sessions 1 Manual Loads 0 Difficulty Rogue Special Mode None Game No. 119 Rogue 6 Adventurer 1 Explorer 112 Win Type - Total 3 Types 2/0/1/0/0/0/0/0/0 Lore% 57 Gallery% 66 Achievement% 66 Wizard Run 0 Options --------- Layout 0 ASCII 0 Keyboard 1 Movement Numpad Keybinds 0 Fullscreen 2 Font 18/SmallcapsGlow Map View 76x50 Zoom Use 0% Tactical HUD 1 Map Filters NONE Filters NONE Steam 1 RUN: 600bc3bf-f0a2-4e8b-a9b6-0ed2dc66f189